{"text_format":"2","workbook":"xlsx","n_sheets":3,"sheets":["Infrastruktur","Vorlage für AZA","Beispiel"],"not_rendered":{"charts":0,"images":1,"macros":0,"external_links":0,"defined_names":0,"comments":0,"pivot_tables":0},"unopened":[],"bounds":{"document_bytes":16777216,"sheet_cells":100000,"run_cost":"one","rows_first":2000,"rows_last":500,"rows_between":2000,"halvings":0,"cell_chars":16384,"cell_head_chars":4096},"cells_cut":0,"cells_raw":0,"read":"whole","date_system":"1900"}

{"sheet":"Infrastruktur","index":0,"n_rows":18,"n_cols":10,"rows_kept":18,"cut":false,"hidden":false,"merged":[[18,0,18,6],[4,0,4,7]]}
["Ermittlung der förderfähigen Ausgaben (EfA) für Lade- und Betankungsinfrastruktur",{"$nulls":7},"ja","nein"]
[]
["Antragsteller ist vorsteuerabzugsberechtigt [Auswahlbox]:"]
["Hinweise:"]
["1. Geben Sie zuerst oben an, ob Sie vorsteuerabzugsberechtigt sind.\n2. Die Registerkarte 'Vorlage für AZA' stellt Ihre Eingaben so dar, wie sie in das easyOnline-Formular eingetragen werden müssen.\n3. Reichen Sie bitte entsprechende Angebote für die zu beschaffenden Investitionen ein.\n4. Falls Lade- oder Betankungsinfrastruktur an mehreren Standorten beantragt wird, füllen Sie diese Excel Datei für jeden Standort getrennt aus.\n5. Der erwartete Betriebsgewinn ist pro Standort nur einmal anzugeben (unter Position 1). Falls der Betriebsgewinn größer ist als 50% der förderfähigen\n    Ausgaben, wird die Zuwendung vom Projektträger angepasst. \n6. Speichern Sie das ausgefüllte Arbeitsblatt als PDF und fügen Sie es dem Antrag bei (Bei easy-online unter \"Endfassung einreichen\").\n7. Grün unterlegte Felder sind Eingabefelder."]
[]
["Position","Typ Lade- und Betankungsinfrastruktur",{"$f":"IF(D3=\"nein\",\"Bruttopreis laut beigefügtem Angebot\",IF(D3=\"ja\",\"Nettopreis laut beigefügtem Angebot\",\"Bitte wählen sie aus, ob sie zum Vorsteuerabzug berechtigt sind!\"))","v":"Bitte wählen sie aus, ob sie zum Vorsteuerabzug berechtigt sind!"},"Anzahl","Erwarteter Betriebsgewinn","Förderfähige Ausgaben ","Korrekturfeld PtJ"]
[1,{"$nulls":4},{"$f":"IF(C8>0,D8*C8,\"\")","v":""}]
[2,{"$nulls":4},{"$f":"IF(C9>0,D9*C9,\"\")","v":""}]
[3,{"$nulls":4},""]
[4,{"$nulls":4},""]
[5,{"$nulls":4},""]
[6,{"$nulls":4},""]
[7,{"$nulls":4},""]
[8,{"$nulls":4},""]
[9,{"$nulls":4},""]
[10,{"$nulls":4},""]
["Summe",{"$nulls":4},{"$f":"IF(C8>0,SUM(F8:F17),\"\")","v":""}]

{"sheet":"Vorlage für AZA","index":1,"n_rows":21,"n_cols":4,"rows_kept":21,"cut":false,"hidden":false,"merged":[]}
["Hinweis:"]
["Vorlage zum Übertragen der Daten aus dieser Tabelle in den AZA-Antrag in easy-Online. "]
["Bitte kopieren Sie die Bezeichung wie hier dargestellt in das easy-Online-Formular. "]
["Die zu beschaffende Infrastruktur muss ggf. auf die Anschaffungsjahre aufgeteilt werden."]
["Beachten Sie, dass die hier angegebene Summe mit den Gesamtmitteln im easy-Online-Antrag überein stimmen müssen."]
[{"$f":"IF(Infrastruktur!D3=\"nein\",\"Der Antragsteller ist nicht zum Vorsteuerabzug berechtigt.\",IF(Infrastruktur!D3=\"ja\",\"Der Antragsteller ist zum Vorsteuerabzug berechtigt.\",\"Bitte wählen sie aus, ob sie zum Vorsteuerabzug berechtigt sind!\"))","v":"Bitte wählen sie aus, ob sie zum Vorsteuerabzug berechtigt sind!"}]
[]
["Gesamtfinanzierung - Gegenstände und andere Investitionen von mehr als 800 € im Einzelfall"]
[]
["Bezeichnung","Preis € / Stück","Anzahl","F0833 Betrag €"]
[{"$f":"IF(Infrastruktur!B8=\"\",\"\",Infrastruktur!B8)","v":""},{"$f":"IF(Infrastruktur!C8=\"\",\"\",Infrastruktur!C8)","v":""},{"$f":"IF(Infrastruktur!D8=\"\",\"\",Infrastruktur!D8)","v":""},{"$f":"Infrastruktur!F8","v":""}]
[{"$f":"IF(Infrastruktur!B9=\"\",\"\",Infrastruktur!B9)","v":""},{"$f":"IF(Infrastruktur!C9=\"\",\"\",Infrastruktur!C9)","v":""},{"$f":"IF(Infrastruktur!D9=\"\",\"\",Infrastruktur!D9)","v":""},{"$f":"Infrastruktur!F9","v":""}]
[{"$f":"IF(Infrastruktur!B10=\"\",\"\",Infrastruktur!B10)","v":""},{"$f":"IF(Infrastruktur!C10=\"\",\"\",Infrastruktur!C10)","v":""},{"$f":"IF(Infrastruktur!D10=\"\",\"\",Infrastruktur!D10)","v":""},{"$f":"Infrastruktur!F10","v":""}]
[{"$f":"IF(Infrastruktur!B11=\"\",\"\",Infrastruktur!B11)","v":""},{"$f":"IF(Infrastruktur!C11=\"\",\"\",Infrastruktur!C11)","v":""},{"$f":"IF(Infrastruktur!D11=\"\",\"\",Infrastruktur!D11)","v":""},{"$f":"Infrastruktur!F11","v":""}]
[{"$f":"IF(Infrastruktur!B12=\"\",\"\",Infrastruktur!B12)","v":""},{"$f":"IF(Infrastruktur!C12=\"\",\"\",Infrastruktur!C12)","v":""},{"$f":"IF(Infrastruktur!D12=\"\",\"\",Infrastruktur!D12)","v":""},{"$f":"Infrastruktur!F12","v":""}]
[{"$f":"IF(Infrastruktur!B13=\"\",\"\",Infrastruktur!B13)","v":""},{"$f":"IF(Infrastruktur!C13=\"\",\"\",Infrastruktur!C13)","v":""},{"$f":"IF(Infrastruktur!D13=\"\",\"\",Infrastruktur!D13)","v":""},{"$f":"Infrastruktur!F13","v":""}]
[{"$f":"IF(Infrastruktur!B14=\"\",\"\",Infrastruktur!B14)","v":""},{"$f":"IF(Infrastruktur!C14=\"\",\"\",Infrastruktur!C14)","v":""},{"$f":"IF(Infrastruktur!D14=\"\",\"\",Infrastruktur!D14)","v":""},{"$f":"Infrastruktur!F14","v":""}]
[{"$f":"IF(Infrastruktur!B15=\"\",\"\",Infrastruktur!B15)","v":""},{"$f":"IF(Infrastruktur!C15=\"\",\"\",Infrastruktur!C15)","v":""},{"$f":"IF(Infrastruktur!D15=\"\",\"\",Infrastruktur!D15)","v":""},{"$f":"Infrastruktur!F15","v":""}]
[{"$f":"IF(Infrastruktur!B16=\"\",\"\",Infrastruktur!B16)","v":""},{"$f":"IF(Infrastruktur!C16=\"\",\"\",Infrastruktur!C16)","v":""},{"$f":"IF(Infrastruktur!D16=\"\",\"\",Infrastruktur!D16)","v":""},{"$f":"Infrastruktur!F16","v":""}]
[{"$f":"IF(Infrastruktur!B17=\"\",\"\",Infrastruktur!B17)","v":""},{"$f":"IF(Infrastruktur!C17=\"\",\"\",Infrastruktur!C17)","v":""},{"$f":"IF(Infrastruktur!D17=\"\",\"\",Infrastruktur!D17)","v":""},{"$f":"Infrastruktur!F17","v":""}]
[null,null,"Summe:",{"$f":"ROUND(SUM(D11:D20),0)","v":0}]

{"sheet":"Beispiel","index":2,"n_rows":34,"n_cols":4,"rows_kept":34,"cut":false,"hidden":false,"merged":[]}
["Fiktives Beispiel Beschaffung Betankungsinfrastruktur (BIS)"]
[]
[]
["Grobe Angaben zum Vorhaben"]
[]
["Antragssteller ",null,null,"vorsteuerabzugsberechtigt"]
["Beantragtes Investitionsgut:",null,null,"Betankungsinfrastruktur"]
["beantragte Förderquote:",null,null,0.5]
["KMU-Bonus:",null,null,"bei LIS/BIS nicht möglich"]
[]
[]
[]
["Beantragte Ausgaben/ EfA-Tabelle"]
{"$rows_empty":14}
["Plausibilisierung in der Vorhabenbeschreibung"]
[]
["Die ZugUmZug GmbH möchte am Standort Musterhausen eine Betankungsanlage für die 6 beantragten HEMU Muster "]
["(easy-Online-Kennung 123456789) errichten. Neben einem Wasserstoffspeicher (siehe \"Angebot Wasserstoffspeicher.pdf\") werden Betankungsequipment bestehend aus"]
["Spezialdichtungen für 200.000 €  (siehe \"Angebot Dichtungen.pdf\") und ein Dispenser der Firma Dispenser GmbH für 280.000 € (siehe \"indikatives Angebot Dispenserbsp.pdf\"), "]
["sowie ein Explosionsschutzgutachten und eine Baugenehmigung benötigt. Für die letzten Positionen wurden in einem "]
["ähnlichen Vorhaben aus dem Jahr 2020 50.000 € benötigt (vgl. \"Angebot Gutachten BIS2020.pdf\")."]